Cogmind - Beta 14 @@@ ROGUE MODE // 2024.08.12 @ 11:23:32 Player: lucky255 Result: Destroyed by YL-1P9(R) with Subdweller Laser Performance ------------- Evolutions (0) 0 Regions Visited (3) 600 Robots Destroyed (24) 120 Value Destroyed (549) 549 Prototype IDs (4) 80 Alien Tech Used (0) 0 Bonus (-34) -34 TOTAL SCORE: 1315 Bonus ------- Friendly Fire -34 Cogmind --------- Core Integrity 0/250 Matter 248/300 Energy 240/240 System Corruption 0% Temperature Cool (6) Movement Treading (160) Location -10/Subcaves Parts ------- > --- POWER (1) -------- Nuclear Core > --- PROPULSION (2) --- Light Treads Light Treads > --- UTILITY (2) ------ Large Storage Unit Improved Terrain Scanner > --- WEAPON (2) ------- Minigun Grenade Launcher > --- INVENTORY (15) --- Light Treads Light Treads Light Treads Light Treads Light Treads Huge Storage Unit Faulty Experimental Sensor Array Signal Interpreter Targeting Computer ECM Suite Reflective Plating Assault Rifle Subdweller Machine Gun Light Cannon Flak Cannon Peak State ------------ > --- POWER ------------ Nuclear Core > --- PROPULSION ------- Light Treads Light Treads > --- UTILITY ---------- Large Storage Unit Improved Terrain Scanner > --- WEAPON ----------- Minigun Flak Cannon > --- INVENTORY -------- Light Treads Light Treads Light Treads Light Treads Light Treads Huge Storage Unit Experimental Sensor Array Signal Interpreter Targeting Computer ECM Suite Reflective Plating Assault Rifle Light Cannon Light Cannon Grenade Launcher [Rating: 17] Favorites ----------- Power Nuclear Core Engine Ion Engine Power Core Nuclear Core Propulsion Light Treads Treads Light Treads Leg Aluminum Leg Utility Large Storage Unit Device Improved Terrain Scanner Storage Large Storage Unit Processor Signal Interpreter Weapon Assault Rifle Energy Gun EM Pulse Gun Ballistic Gun Assault Rifle Ballistic Cannon Flak Cannon Launcher Grenade Launcher Build | -11 -10 -10 -10 ------- Run | Yrd Mat Min Sub Slots Evolved . | . . . . Power . | . . . . Propulsion . | . . . . Utility . | . . . . Weapon . | . . . . Parts Attached 41 | . 33 7 1 Power 6 | . 5 1 . Engine 5 | . 5 . . Core 1 | . . 1 . Reactor . | . . . . Propulsion 12 | . 12 . . Treads 4 | . 4 . . Leg 8 | . 8 . . Wheel . | . . . . Hover . | . . . . Flight . | . . . . Utility 7 | . 6 1 . Device 2 | . 1 1 . Storage 4 | . 4 . . Processor 1 | . 1 . . Hackware . | . . . . Protection . | . . . . Artifact . | . . . . Weapon 16 | . 10 5 1 Energy Gun 3 | . 3 . . Energy Cannon . | . . . . Ballistic Gun 6 | . 5 1 . Ballistic Cannon 4 | . 1 3 . Launcher 3 | . 1 1 1 Special Weapon . | . . . . Impact Weapon . | . . . . Slashing Weapon . | . . . . Piercing Weapon . | . . . . Special Melee Weapon . | . . . . Unidentified Prototypes . | . . . . Parts Lost 5 | . 5 . . Power 1 | . 1 . . Propulsion 1 | . 1 . . Utility . | . . . . Weapon 3 | . 3 . . Highest Loss Streak 5 | . 5 . . To Critical Strikes . | . . . . Average Slot Usage (%) 99 | . 98 100 100 Engine 7 | . 13 1 . Core 6 | . . 12 14 Treads 17 | . 5 28 28 Leg 10 | . 22 . . Device 9 | . 4 14 14 Storage 14 | . 14 14 14 Processor 4 | . 8 . . Energy Gun 3 | . 6 . . Ballistic Gun 16 | . 18 14 14 Ballistic Cannon 8 | . 3 13 13 Peak Build Rating 17 | . 8 17 17 Average Rating 11 | . 7 15 16 On Entrance 9 | 6 6 8 17 Naked Turns . | . . . . Heaviest Build 37 | 12 31 37 37 Greatest Support 40 | 20 40 40 40 Greatest Overweight (x) 1 | . 1 . . Average Overweight (x) . | . . . . Largest Inventory Capacity 25 | . 25 15 15 Average Capacity 13 | . 11 15 15 Most Carried 15 | . 15 15 15 Average Carried 13 | . 10 14 14 Final Capacity 15 | 8 15 15 15 Final Carried 15 | 6 15 15 15 Class Distribution -------------------- 92% | Mutant 7% | Scavenger-Mutant Dominant Class ---------------- Mutant | -10/Materials Mutant | -10/Mines Mutant | -10/Subcaves Resources | -11 -10 -10 -10 ----------- Run | Yrd Mat Min Sub Matter Collected 986 | 200 611 175 . Remotely . | . . . . Salvage Created 768 | . 682 51 35 Parts 45 | . 42 2 1 Haulers Intercepted 1 | . 1 . . Recyclers Shooed . | . . . . Parts Field Recycled . | . . . . Retrieved Matter . | . . . . Parts Self-Destructed 2 | . . . 2 Prevented . | . . . . Kills | -11 -10 -10 -10 ------- Run | Yrd Mat Min Sub Combat Hostiles Destroyed 22 | . 16 5 1 Guns 12 | . 10 2 . Cannons 6 | . 3 3 . AOE 4 | . 3 . 1 Classes Destroyed 9 | . 6 2 1 Worker 2 | . 2 . . Tunneler 1 | . . 1 . Hauler 1 | . 1 . . Recycler 1 | . 1 . . Watcher 2 | . 2 . . Swarmer 5 | . 5 . . Grunt 11 | . 11 . . Subdweller 1 | . . . 1 Assembled 5 | . . 5 . Best Kill Streak 5 | . 5 4 1 Combat Bots Only 4 | . 3 4 1 Max Kills in Single Turn 3 | . 3 2 1 Gunslinging . | . . . . Exploded 2 | . 2 . 1 Melee . | . . . . Uniques/NPCs Destroyed . | . . . . Combat | -11 -10 -10 -10 -------- Run | Yrd Mat Min Sub Hostile Shots Fired 142 | . 129 7 6 Missed 31 | . 27 2 2 Damage Taken 1420 | . 1195 124 101 Core 253 | . 214 19 20 Absorbed by Shields . | . . . . Core Remaining (%) 100 | 100 . . . Volleys Fired 86 | . 72 11 3 Largest 2 | . 2 2 2 Hottest 80 | . 80 69 55 Shots Fired 162 | . 134 22 6 Gun 129 | . 115 11 3 Cannon 27 | . 17 10 . Launcher 6 | . 2 1 3 Special . | . . . . Kinetic 135 | . 111 21 3 Thermal 10 | . 10 . . Explosive 6 | . 2 1 3 Electromagnetic 11 | . 11 . . Robot Hit Streak 11 | . 11 6 3 Robot Miss Streak 4 | . 4 4 1 Penetration Max . | . . . . Secondary Targets 1 | . 1 . . Max Gunslinging Chain 1 | . 1 . . Shots Hit Robots 101 | . 81 17 3 Core Hits 56 | . 36 19 1 Critical Kills 1 | . 1 . . Critical Parts Destroyed 1 | . 1 . . Critical Strikes 2 | . 2 . . Destroy 2 | . 2 . . Melee Attacks . | . . . . Impact . | . . . . Slashing . | . . . . Piercing . | . . . . Sneak Attacks . | . . . . Combat Hostiles . | . . . . Follow-up Attacks . | . . . . Damage Inflicted 1841 | . 1287 401 153 Guns 919 | . 763 142 14 Cannons 376 | . 220 156 . Explosions 546 | . 304 103 139 Melee . | . . . . Ramming . | . . . . Kinetic 1104 | . 792 298 14 Thermal 106 | . 106 . . Explosive 510 | . 268 103 139 Electromagnetic 121 | . 121 . . Impact . | . . . . Slashing . | . . . . Piercing . | . . . . Highest Corruption . | . . . . Average Corruption . | . . . . Corruption Purged . | . . . . Corruption Blocked . | . . . . Overload Shots . | . . . . Overflow Damage . | . . . . Projectiles . | . . . . Explosions . | . . . . Melee . | . . . . Knockbacks 14 | . 4 10 . Impact . | . . . . Kinetic 12 | . 4 8 . Secondary 2 | . . 2 . Self-Inflicted Damage 65 | . 39 . 26 Shots 3 | . 1 . 2 Rammed . | . . . . Targets Rammed . | . . . . Kicked . | . . . . Crushed . | . . . . Highest Temperature 120 | . 54 120 . Average Temperature 28 | . 16 52 . Received Heat Transfer 501 | . 477 . 24 Siege Activations . | . . . . Robots Corrupted . | . . . . Combat Hostiles . | . . . . Parts Fried . | . . . . Impact Corruptions . | . . . . Robots Melted . | . . . . Combat Hostiles . | . . . . Parts Melted . | . . . . Heat Transferred 200 | . 200 . . Parts Sabotaged . | . . . . Parts Stolen . | . . . . Parts Stripped . | . . . . Power Chain Reactions 1 | . 1 . . Alert | -11 -10 -10 -10 ------- Run | Yrd Mat Min Sub Peak Influence 236 | . 236 52 . Initial 47 | . . 47 . Average 56 | . 86 18 . Maximum Alert Level 1 | . 1 . . Low Security (%) 97 | . 95 100 . Level 1 2 | . 4 . . Level 2 . | . . . . Level 3 . | . . . . Level 4 . | . . . . Level 5 . | . . . . High Security . | . . . . Max Security . | . . . . Squads Dispatched 2 | . 2 . . Investigation 1 | . 1 . . Extermination . | . . . . Reinforcement 1 | . 1 . . Assault . | . . . . Garrison . | . . . . Intercept . | . . . . Searches Triggered . | . . . . Construction Impeded . | . . . . Haulers Reinforced . | . . . . Active Scanning Responses . | . . . . Cargo Convoy Interrupts . | . . . . Stealth | -11 -10 -10 -10 --------- Run | Yrd Mat Min Sub Distress Signals . | . . . . Communications Jammed . | . . . . Distress Signals . | . . . . Times Spotted 44 | . 27 15 2 Peak Tracking Total 16 | . 4 16 2 Tactical Retreats 7 | . 6 1 . Traps | -11 -10 -10 -10 ------- Run | Yrd Mat Min Sub Traps Triggered 4 | . 4 . . Indirectly . | . . . . Trap Hack Attempts . | . . . . Triggered . | . . . . Disarmed . | . . . . Reprogrammed . | . . . . Reused . | . . . . Traps Extracted . | . . . . Installed . | . . . . Triggered . | . . . . Machines | -11 -10 -10 -10 ---------- Run | Yrd Mat Min Sub Machines Disabled 1 | . 1 . . Max in Single Turn 1 | . 1 . . Machines Repaired . | . . . . Machines Dismantled . | . . . . Machines Sabotaged . | . . . . Overloaded Fab Kills . | . . . . Hacking | -11 -10 -10 -10 --------- Run | Yrd Mat Min Sub Machines Accessed 8 | . 6 2 . Terminals 7 | . 6 1 . Fabricators . | . . . . Repair Stations . | . . . . Recycling Units . | . . . . Scanalyzers . | . . . . Garrison Access . | . . . . Total Hacks 22 | . 17 5 . Successful 13 | . 11 2 . Failed 9 | . 6 3 . Catastrophic 1 | . 1 . . Database Lockouts . | . . . . Manual 2 | . 2 . . Terminals 21 | . 17 4 . Fabricators . | . . . . Repair Stations . | . . . . Recycling Units . | . . . . Scanalyzers . | . . . . Garrison Access . | . . . . Terminal Hacks 13 | . 11 2 . Record 4 | . 4 . . Prototype ID Bank 2 | . 2 . . Open Door 1 | . . 1 . Branch Access Points 1 | . 1 . . Terminal Index 1 | . 1 . . Locate Traps 1 | . 1 . . Hauler Manifests 1 | . 1 . . Zone Layout 2 | . 1 1 . Fabricator Hacks . | . . . . Repair Station Hacks . | . . . . Recycling Unit Hacks . | . . . . Scanalyzer . | . . . . Garrison Access Hacks . | . . . . Unauthorized Hacks . | . . . . Terminals . | . . . . Fabricators . | . . . . Repair Stations . | . . . . Recycling Units . | . . . . Scanalyzers . | . . . . Garrison Access . | . . . . Data Cores Recovered . | . . . . Used . | . . . . Hacking Detections 4 | . 3 1 . Full Trace Events 1 | . . 1 . Feedback Events . | . . . . Feedback Blocked . | . . . . Robot Schematics Acquired . | . . . . Robots Built . | . . . . Authchips . | . . . . Time . | . . . . Total Robot Build Rating . | . . . . Part Schematics Acquired . | . . . . Parts Built . | . . . . Authchips . | . . . . Time . | . . . . Total Part Build Rating . | . . . . Parts Repaired . | . . . . Time . | . . . . Parts Recycled . | . . . . Recycled Matter . | . . . . Retrieved Matter . | . . . . Retrieved Components . | . . . . Parts Scanalyzed . | . . . . Part Schematics Acquired . | . . . . Parts Damaged . | . . . . Bothacking | -11 -10 -10 -10 ------------ Run | Yrd Mat Min Sub Used RIF Installer . | . . . . Robots Hacked . | . . . . Non-combat . | . . . . Combat . | . . . . Robot Hacks Applied . | . . . . Relay Couplers Released . | . . . . Fabnet Peak Effective % . | . . . . Robots Rewired . | . . . . Allies Hacked . | . . . . Hacks Repelled . | . . . . Allies | -11 -10 -10 -10 -------- Run | Yrd Mat Min Sub Total Allies . | . . . . Largest Group . | . . . . Highest-Rated Group . | . . . . Highest-Rated Ally . | . . . . Total Orders . | . . . . Ally Attacks . | . . . . Total Damage . | . . . . Kills . | . . . . Allies Corrupted . | . . . . Allies Melted . | . . . . Intel | -11 -10 -10 -10 ------- Run | Yrd Mat Min Sub Robot Analysis Total . | . . . . Derelict Logs Recovered . | . . . . Drone Launches . | . . . . Drone Recoveries . | . . . . Exploration | -11 -10 -10 -10 ------------- Run | Yrd Mat Min Sub Turns Passed 3425 | . 1681 1323 421 Spaces Moved 1703 | 1 868 577 257 Core . | . . . . Treads 1016 | . 182 577 257 Legs 687 | 1 686 . . Wheels . | . . . . Hover . | . . . . Flight . | . . . . Fastest Speed 120 | 120 120 160 160 Average Speed 146 | 120 134 160 160 Slowest Speed 240 | 120 240 160 160 Overloaded Moves . | . . . . Propulsion Burnouts . | . . . . Robots Hopped . | . . . . Cave-ins Triggered . | . . . . Exploration Rate (%) 51 | 2 88 98 19 Regions Visited 3 Branch Regions 2 Pre-discovered Areas . | . . . . Known Exits Taken 1 | . 1 . . Unknown Exits Taken 2 | 1 . 1 . Scrap Searched 1 | . . 1 . Spaces Dug . | . . . . Terrain Destroyed 29 | . 8 10 11 Melee . | . . . . Projectile . | . . . . AOE 29 | . 8 10 11 Terrain Rammed . | . . . . Walls Destroyed . | . . . . Machines Disabled . | . . . . Actions | -11 -10 -10 -10 --------- Run | Yrd Mat Min Sub Total 2479 | . 1258 958 263 Wait 593 | . 242 351 . Move 1700 | . 867 576 257 Hop . | . . . . Pick Up 29 | . 22 6 1 Fast Attach 4 | . 4 . . Attach 4 | . 4 . . Detach 2 | . 2 . . Swap 33 | . 25 7 1 Drop 28 | . 20 7 1 Fire 86 | . 72 11 3 Melee . | . . . . Ram . | . . . . Kick . | . . . . Crush . | . . . . Escape Stasis . | . . . . Rewire . | . . . . Trap . | . . . . Miscellaneous . | . . . . Route ------- -11/Scrapyard -10/Materials (discovered 4 exits: *Mat x3 / *Min) -10/Mines (discovered 3 exits: *Mat x2 / [*Sub]) -10/Subcaves History --------- Turn | Location | Event 1 | -11/Scrapyard | Discovered new exit (range 0) 1 | -11/Scrapyard | Entered Materials 319 | -10/Materials | Build established: Mutant 370 | -10/Materials | Discovered new exit (range 13) 840 | -10/Materials | Identified exit to Materials 932 | -10/Materials | Discovered new exit (range 9) 1162 | -10/Materials | Discovered exit to Materials (range 3) 1302 | -10/Materials | Core integrity fell below 50% 1328 | -10/Materials | Core integrity fell below 20% 1366 | -10/Materials | Lost 5 parts (1p1n3w) 1442 | -10/Materials | Discovered exit to Materials (range 5) 1450 | -10/Materials | Identified exit to Mines 1682 | -10/Materials | Entered Mines 1778 | -10/Mines | Met a Derelict who couldn't figure out how to use a Trap Extractor 2082 | -10/Mines | Assembled infested the area 2087 | -10/Mines | Assisted by a Guerilla fighting off Assembled 2238 | -10/Mines | Found a damaged Exp. Sensor Array with a note attached 2242 | -10/Mines | Found Prototype Device 2912 | -10/Mines | Discovered exit to Materials (range 8) 2986 | -10/Mines | Discovered exit to Materials (range 7) 2989 | -10/Mines | Discovered new exit (range 9) 3005 | -10/Mines | Entered Subcaves 3018 | -10/Subcaves | Shifting Twisted Machinery released Sub. Machine Gun 3426 | -10/Subcaves | Destroyed by YL-1P9(R) with Subdweller Laser Last Messages --------------- 02741_ U-05 Engineer builds a Door. 02751_ U-05 Engineer builds a Wall. 02760_ U-05 Engineer lays Concrete. 02778_ U-05 Engineer builds a Wall. 02782_ U-05 Engineer lays Concrete. 02785_ U-05 Engineer builds a Wall. 02789_ U-05 Engineer lays Concrete. 02912_ EXIT=FOUND: MATERIALS 02989_ EXIT=FOUND 03000_ T-07 Excavator is excavating. LOCATION=UNKNOWN AMBIENT_HEAT=-10 GOAL=ESCAPE Sub. Machine Gun falls loose from the Twisted Machinery. 03042_ Dropped Lgt. Cannon. 03044_ Acquired Sub. Machine Gun. 03268_ Subatomizers dissect the Wheel. 03422_ 2C-EJ1(R) destroyed. 03424_ Subatomizers dissect the Sub. Monowheel. 03425_ YL-1P9(R) affixes Scrap Shield Fragment to Scrap Shield. Map ----- +----------------------------------------------------+ | ?????????????????????????????????????????????????? | | ?????????????????????#????????????##?????????????? | | ?????????????????????????????? ??????????????????? | | ?????????????????????????????? ??????????????????? | | ? #??????????????????????????#####?????????????? | | ? #?????????????????????????## ###???????????? | | ? ##????????????????????????# ##??????????? | | ? #?????????#????#????????## #??????????? | | # ##?????????????????????## ##??????????? | | # ##??????????#??????#?### ##???????????? | | #???#?????????#????## ##???????????? | | ???????????????????# #???????????? | | %???????????#????##??## #???????????? | | # ????#?????#???#???????## ##?????#????? | | # ##??????????????????????# ### #??????????? | | % #?????????????????????## ### #??????????? | | # #?????????????????#????# ###?????????? | | =#???#????#?????????????# ##????#?????? | | %%#????????###??#?######### #???#??????? | | ########## ##??## ### #??????????? | | %## #### ### #??????????? | | % %% ## #### ##?????????? | | % % ########??#???????? | | ## #?#???#????????? | | ## #### #???????#??????? | | ### #?# ### @ R #??????????????? | | #? ## %% ##?## %= #???#??????????? | | #### ##?#?# & ###??????????????? | | ## ##????##### ####????????????? | | % ### #######?????????# ###??????????? | | ######?######????#?????#????# #???????????? | | ????????????????????????????# #???????????? | | ???#??????????#?????#?#?????# #???????????? | | ?????????????#?????????#????# ### #??????????? | | ?????????????????#?????#????# #?# #??????????? | | ?????????????????????#??????# ##?# #????#?????? | | ???????#????????????????????##??? ###???#??????? | | ????????????????#???????????????# ###????????????? | | ???????????????????????????????? ???????????????? | | ???????????#??????????????????? ???????????????? | | ?????????????????????????????? ???????????????? | | ?????????????????????????????? ???????????????? | | ????????????????????????????? #???#???????????? | | ????????????????????????????##"" ????????????????? | | ??????????????????????????????"""????????????????? | | ?????????????????????????????????????????????????? | | ?????????????????????????????????????????????????? | | ?????????????????????????????????????????????????? | | ?????????????????????????????????????????????????? | | ?????????????????????????????????????????????????? | +----------------------------------------------------+ Best States ------------- Heat Dissipation 35 Energy Generation 14 Energy Capacity 250 Matter Stores 300 Matter Capacity 300 Sight Range 16 Terrain Scan Range 16 Terrain Scan Density 10 Evasion (%) 55 Recoil Reduction 2 Item Schematics ----------------- None Robot Schematics ------------------ None Fabricated ------------ Nothing Alien Tech Used ----------------- None Achievements -------------- None Challenges ------------ None Game ------ Seed LargeTiamatFemtoactuators Manual? 0 Play Time 00:50:12 Cumulative 19.9 hours Start 2024.08.12 @ 10:02:01 End 2024.08.12 @ 11:23:32 Sessions 6 Manual Loads 0 Difficulty Rogue Special Mode None Game No. 18 Rogue 18 Adventurer 0 Explorer 0 Win Type - Total 0 Types 0/0/0/0/0/0/0/0/0 Lore% 13 Gallery% 20 Achievement% 19 Wizard Run 0 Options --------- Layout 0 ASCII 0 Keyboard 1 Movement Numpad Keybinds 0 Fullscreen 2 Font 18/X11 Map View 76x50 Zoom Use 0% Tactical HUD 1 Map Filters NONE Filters NONE Steam 1 RUN: eac6f229-f6d7-40ff-9175-c863750d7fc6